[Event "*** SCC Grand Prix: Titled Tuesday Blitz"]
[Site "Chess.com"]
[Date "2020.10.13"]
[Round "2"]
[White "elohunter1999"]
[Black "Alexander_Zubov"]
[Result "1-0"]
[WhiteElo "2609"]
[BlackElo "2922"]
[TimeControl "180+1"]
[EndTime "10:18:25 PDT"]
[Termination "elohunter1999 won on time"]

1. e4 {[%clk 0:03:00.9]} 1... c5 {[%clk 0:02:19.2]} 2. Nf3 {[%clk 0:03:00.1]}
2... d6 {[%clk 0:02:16.4]} 3. d4 {[%clk 0:02:59.8]} 3... cxd4 {[%clk 0:02:17.3]}
4. Nxd4 {[%clk 0:03:00.1]} 4... Nf6 {[%clk 0:02:16.8]} 5. Nc3 {[%clk 0:03:00.8]}
5... a6 {[%clk 0:02:17.3]} 6. Bg5 {[%clk 0:03:00.8]} 6... Nbd7 {[%clk
0:02:15.5]} 7. Bc4 {[%clk 0:02:54.7]} 7... Qb6 {[%clk 0:02:13]} 8. Bb3 {[%clk
0:02:52.1]} 8... e6 {[%clk 0:02:09.1]} 9. Qd2 {[%clk 0:02:50.6]} 9... Be7 {[%clk
0:02:08]} 10. O-O-O {[%clk 0:02:47.6]} 10... Nc5 {[%clk 0:02:07]} 11. Rhe1
{[%clk 0:02:31.9]} 11... h6 {[%clk 0:02:00.6]} 12. Bh4 {[%clk 0:02:28.1]} 12...
g5 {[%clk 0:01:52.5]} 13. Bg3 {[%clk 0:02:23.9]} 13... e5 {[%clk 0:01:48.6]} 14.
Nf5 {[%clk 0:02:01.9]} 14... Bxf5 {[%clk 0:01:32.5]} 15. exf5 {[%clk 0:02:01.5]}
15... Nxb3+ {[%clk 0:01:33]} 16. axb3 {[%clk 0:02:01.1]} 16... Rc8 {[%clk
0:01:20.3]} 17. Kb1 {[%clk 0:01:53.5]} 17... Qc6 {[%clk 0:01:17.6]} 18. f3
{[%clk 0:01:46.9]} 18... b5 {[%clk 0:01:16]} 19. Re2 {[%clk 0:01:44.9]} 19... b4
{[%clk 0:01:06.5]} 20. Nd5 {[%clk 0:01:27.5]} 20... Nxd5 {[%clk 0:01:03.5]} 21.
Qxd5 {[%clk 0:01:28.4]} 21... Qxd5 {[%clk 0:01:02.2]} 22. Rxd5 {[%clk
0:01:29.3]} 22... f6 {[%clk 0:00:41.5]} 23. Re4 {[%clk 0:01:28.2]} 23... Rc5
{[%clk 0:00:41.1]} 24. Rxc5 {[%clk 0:01:12.5]} 24... dxc5 {[%clk 0:00:40.9]} 25.
Re2 {[%clk 0:01:08.9]} 25... Kd7 {[%clk 0:00:40.4]} 26. Rd2+ {[%clk 0:01:00.2]}
26... Kc6 {[%clk 0:00:40.3]} 27. c4 {[%clk 0:00:59.2]} 27... h5 {[%clk
0:00:34.6]} 28. Re2 {[%clk 0:00:39.9]} 28... Bd6 {[%clk 0:00:33.2]} 29. Re4
{[%clk 0:00:37.9]} 29... Rg8 {[%clk 0:00:31.9]} 30. h3 {[%clk 0:00:36]} 30... a5
{[%clk 0:00:31.5]} 31. Bf2 {[%clk 0:00:35.3]} 31... Ra8 {[%clk 0:00:30]} 32. Kc2
{[%clk 0:00:32.5]} 32... a4 {[%clk 0:00:29.6]} 33. Re1 {[%clk 0:00:30.6]} 33...
axb3+ {[%clk 0:00:25.9]} 34. Kxb3 {[%clk 0:00:30.6]} 34... g4 {[%clk 0:00:22.9]}
35. fxg4 {[%clk 0:00:27.8]} 35... hxg4 {[%clk 0:00:23.2]} 36. hxg4 {[%clk
0:00:28]} 36... Rh8 {[%clk 0:00:23.3]} 37. Bg3 {[%clk 0:00:26.6]} 37... Rg8
{[%clk 0:00:23.5]} 38. Re4 {[%clk 0:00:26.9]} 38... Ra8 {[%clk 0:00:21.7]} 39.
Bh4 {[%clk 0:00:26.6]} 39... Rf8 {[%clk 0:00:19.7]} 40. Bg3 {[%clk 0:00:22.2]}
40... Rh8 {[%clk 0:00:19.4]} 41. Kc2 {[%clk 0:00:20.3]} 41... Rh1 {[%clk
0:00:18.3]} 42. Kd3 {[%clk 0:00:19.9]} 42... Rb1 {[%clk 0:00:17.3]} 43. Kc2
{[%clk 0:00:19.7]} 43... Rg1 {[%clk 0:00:17.4]} 44. Re2 {[%clk 0:00:18.9]} 44...
Rf1 {[%clk 0:00:16.7]} 45. Re4 {[%clk 0:00:18.5]} 45... Rg1 {[%clk 0:00:16.4]}
46. Re2 {[%clk 0:00:18.5]} 46... Rh1 {[%clk 0:00:15.7]} 47. Re1 {[%clk
0:00:18.6]} 47... Rh8 {[%clk 0:00:15.4]} 48. g5 {[%clk 0:00:18.6]} 48... Rh5
{[%clk 0:00:14.5]} 49. g6 {[%clk 0:00:17.3]} 49... Rxf5 {[%clk 0:00:13.8]} 50.
Bh4 {[%clk 0:00:17.7]} 50... Bf8 {[%clk 0:00:14]} 51. g4 {[%clk 0:00:16.7]}
51... Rf4 {[%clk 0:00:13.5]} 52. g5 {[%clk 0:00:15.5]} 52... fxg5 {[%clk
0:00:10.3]} 53. Bxg5 {[%clk 0:00:15.7]} 53... Rf5 {[%clk 0:00:10.5]} 54. Be3
{[%clk 0:00:14]} 54... Rf3 {[%clk 0:00:08.6]} 55. Kd3 {[%clk 0:00:14.2]} 55...
Bg7 {[%clk 0:00:05.3]} 56. Rg1 {[%clk 0:00:13.4]} 56... Rh3 {[%clk 0:00:03.2]}
57. Ke4 {[%clk 0:00:13.4]} 57... Rh2 {[%clk 0:00:03.5]} 58. b3 {[%clk 0:00:13]}
58... Rb2 {[%clk 0:00:01.5]} 59. Rf1 {[%clk 0:00:13.5]} 59... Rxb3 {[%clk
0:00:01.7]} 60. Rf7 {[%clk 0:00:13.8]} 60... Bh8 {[%clk 0:00:02.3]} 61. Rh7
{[%clk 0:00:13.8]} 61... Bf6 {[%clk 0:00:02.4]} 62. Bg5 {[%clk 0:00:13.8]} 1-0

[Event "*** SCC Grand Prix: Titled Tuesday Blitz"]
[Site "Chess.com"]
[Date "2020.10.13"]
[Round "2"]
[White "teacher4chess"]
[Black "zmeeed67"]
[Result "1-0"]
[WhiteElo "2018"]
[BlackElo "2355"]
[TimeControl "180+1"]
[EndTime "10:18:29 PDT"]
[Termination "teacher4chess won by resignation"]

1. d4 {[%clk 0:02:59.8]} 1... Nc6 {[%clk 0:03:00]} 2. c4 {[%clk 0:02:57.3]} 2...
e5 {[%clk 0:02:59.6]} 3. d5 {[%clk 0:02:52.1]} 3... Nce7 {[%clk 0:02:59.6]} 4.
e4 {[%clk 0:02:52.1]} 4... Ng6 {[%clk 0:02:59.6]} 5. g3 {[%clk 0:02:49.3]} 5...
Bc5 {[%clk 0:02:59.8]} 6. h4 {[%clk 0:02:46.6]} 6... h6 {[%clk 0:02:57.5]} 7. h5
{[%clk 0:02:43.2]} 7... Nf8 {[%clk 0:02:57.1]} 8. Qg4 {[%clk 0:02:38.3]} 8...
Qf6 {[%clk 0:02:51.2]} 9. Qf3 {[%clk 0:02:36.8]} 9... d6 {[%clk 0:02:48]} 10.
Nc3 {[%clk 0:02:32.9]} 10... a6 {[%clk 0:02:47.1]} 11. Bd2 {[%clk 0:02:28]}
11... Nh7 {[%clk 0:02:46.3]} 12. Bh3 {[%clk 0:02:18.7]} 12... Ne7 {[%clk
0:02:42.7]} 13. Qxf6 {[%clk 0:02:10.5]} 13... Nxf6 {[%clk 0:02:42]} 14. Bxc8
{[%clk 0:02:10.2]} 14... Rxc8 {[%clk 0:02:39.5]} 15. Ke2 {[%clk 0:02:01.2]}
15... O-O {[%clk 0:02:32.4]} 16. a3 {[%clk 0:01:58.3]} 16... Nd7 {[%clk
0:02:08.3]} 17. g4 {[%clk 0:01:54.5]} 17... Nf6 {[%clk 0:01:44]} 18. g5 {[%clk
0:01:34]} 18... hxg5 {[%clk 0:01:26.2]} 19. Bxg5 {[%clk 0:01:33.8]} 19... Rce8
{[%clk 0:01:25.5]} 20. Bxf6 {[%clk 0:01:28.8]} 20... gxf6 {[%clk 0:01:24.9]} 21.
Nf3 {[%clk 0:01:28.9]} 21... Kh7 {[%clk 0:01:09.7]} 22. Rag1 {[%clk 0:01:27.2]}
22... Rg8 {[%clk 0:01:09.6]} 23. Nh4 {[%clk 0:01:18.5]} 23... Rg5 {[%clk
0:01:00.2]} 24. Rxg5 {[%clk 0:01:08.5]} 24... fxg5 {[%clk 0:01:00]} 25. Nf3
{[%clk 0:01:04.1]} 25... Kh6 {[%clk 0:00:56.6]} 26. b4 {[%clk 0:00:58.5]} 26...
Ba7 {[%clk 0:00:52.5]} 27. Nd1 {[%clk 0:00:55.5]} 27... f5 {[%clk 0:00:50.9]}
28. Ne3 {[%clk 0:00:49.4]} 28... Bxe3 {[%clk 0:00:48.8]} 29. Kxe3 {[%clk
0:00:48.8]} 29... f4+ {[%clk 0:00:46.1]} 30. Ke2 {[%clk 0:00:48.5]} 30... g4
{[%clk 0:00:39.4]} 31. Nd2 {[%clk 0:00:41.4]} 31... Kg5 {[%clk 0:00:36.1]} 32.
c5 {[%clk 0:00:30.7]} 32... Rh8 {[%clk 0:00:30.9]} 33. cxd6 {[%clk 0:00:29.7]}
33... cxd6 {[%clk 0:00:31]} 34. Nc4 {[%clk 0:00:29.7]} 34... Rh6 {[%clk
0:00:29.1]} 35. a4 {[%clk 0:00:24.8]} 35... Nc8 {[%clk 0:00:28.8]} 36. Na5
{[%clk 0:00:24.1]} 36... b5 {[%clk 0:00:26.7]} 37. axb5 {[%clk 0:00:23.5]} 37...
axb5 {[%clk 0:00:26.4]} 38. Rc1 {[%clk 0:00:23.6]} 38... Nb6 {[%clk 0:00:26.3]}
39. Rc6 {[%clk 0:00:23.5]} 39... Nc4 {[%clk 0:00:25]} 40. Nxc4 {[%clk
0:00:23.4]} 40... bxc4 {[%clk 0:00:25.1]} 41. Rxc4 {[%clk 0:00:23.8]} 41... Kxh5
{[%clk 0:00:23.1]} 42. b5 {[%clk 0:00:23.5]} 42... Kh4 {[%clk 0:00:18.9]} 43. b6
{[%clk 0:00:23.2]} 43... Rh8 {[%clk 0:00:17.6]} 44. Rc6 {[%clk 0:00:19]} 44...
Rd8 {[%clk 0:00:17.8]} 45. b7 {[%clk 0:00:18.5]} 45... Rb8 {[%clk 0:00:17.9]}
46. Rxd6 {[%clk 0:00:18.3]} 46... Rxb7 {[%clk 0:00:18.3]} 47. Rh6+ {[%clk
0:00:18.5]} 47... Kg5 {[%clk 0:00:17.9]} 48. Re6 {[%clk 0:00:15.7]} 48... Rb2+
{[%clk 0:00:18.2]} 49. Ke1 {[%clk 0:00:12.9]} 49... f3 {[%clk 0:00:18.3]} 50.
Rxe5+ {[%clk 0:00:12.8]} 50... Kf4 {[%clk 0:00:18.8]} 51. Re8 {[%clk 0:00:10.6]}
51... Rb1+ {[%clk 0:00:18.2]} 52. Kd2 {[%clk 0:00:10.9]} 52... Rb2+ {[%clk
0:00:16.4]} 53. Ke1 {[%clk 0:00:10.9]} 53... Re2+ {[%clk 0:00:16.2]} 54. Kf1
{[%clk 0:00:10.9]} 54... Rxe4 {[%clk 0:00:15.9]} 55. Rxe4+ {[%clk 0:00:10.7]}
55... Kxe4 {[%clk 0:00:15.5]} 56. d6 {[%clk 0:00:11.1]} 56... g3 {[%clk
0:00:15.8]} 57. fxg3 {[%clk 0:00:10.3]} 1-0

[Event "*** SCC Grand Prix: Titled Tuesday Blitz"]
[Site "Chess.com"]
[Date "2020.10.13"]
[Round "2"]
[White "VerdeNotte"]
[Black "WildBizon"]
[Result "0-1"]
[WhiteElo "2823"]
[BlackElo "2592"]
[TimeControl "180+1"]
[EndTime "10:18:32 PDT"]
[Termination "WildBizon won by resignation"]

1. c4 {[%clk 0:03:00.9]} 1... Nf6 {[%clk 0:02:59.7]} 2. g3 {[%clk 0:02:58.8]}
2... c6 {[%clk 0:02:58.1]} 3. Bg2 {[%clk 0:02:58.4]} 3... d5 {[%clk 0:02:58.5]}
4. Nf3 {[%clk 0:02:58.1]} 4... g6 {[%clk 0:02:58.5]} 5. b3 {[%clk 0:02:57.6]}
5... Bg7 {[%clk 0:02:58.9]} 6. Bb2 {[%clk 0:02:58]} 6... O-O {[%clk 0:02:59.5]}
7. O-O {[%clk 0:02:58.1]} 7... Bg4 {[%clk 0:02:59.7]} 8. d3 {[%clk 0:02:57.7]}
8... Bxf3 {[%clk 0:03:00]} 9. Bxf3 {[%clk 0:02:57]} 9... Nbd7 {[%clk 0:03:00.4]}
10. cxd5 {[%clk 0:02:52.2]} 10... cxd5 {[%clk 0:03:00.3]} 11. e3 {[%clk
0:02:51.1]} 11... e6 {[%clk 0:02:59.7]} 12. Nd2 {[%clk 0:02:48.8]} 12... Ne8
{[%clk 0:03:00]} 13. d4 {[%clk 0:02:48.2]} 13... Nd6 {[%clk 0:03:00]} 14. Ba3
{[%clk 0:02:47.3]} 14... Nf6 {[%clk 0:02:55.1]} 15. Rc1 {[%clk 0:02:44.4]} 15...
Re8 {[%clk 0:02:55.1]} 16. Rc2 {[%clk 0:02:40.4]} 16... Bf8 {[%clk 0:02:55.2]}
17. Qe2 {[%clk 0:02:32.3]} 17... Qd7 {[%clk 0:02:53.6]} 18. Rfc1 {[%clk
0:02:31.1]} 18... Rac8 {[%clk 0:02:53.8]} 19. Nb1 {[%clk 0:02:26.3]} 19... Rxc2
{[%clk 0:02:53.5]} 20. Rxc2 {[%clk 0:02:26.6]} 20... Rc8 {[%clk 0:02:53.4]} 21.
Qd1 {[%clk 0:02:17]} 21... Rxc2 {[%clk 0:02:42.4]} 22. Qxc2 {[%clk 0:02:17.2]}
22... Qc8 {[%clk 0:02:41.1]} 23. Qxc8 {[%clk 0:02:14.7]} 23... Nxc8 {[%clk
0:02:41]} 24. Bc1 {[%clk 0:02:13.9]} 24... Bb4 {[%clk 0:02:34.8]} 25. a3 {[%clk
0:02:08.5]} 25... Ba5 {[%clk 0:02:32.4]} 26. g4 {[%clk 0:02:03.8]} 26... Nd6
{[%clk 0:02:30.4]} 27. Be2 {[%clk 0:02:03.2]} 27... Nfe4 {[%clk 0:02:26.9]} 28.
f3 {[%clk 0:02:02.4]} 28... Nc3 {[%clk 0:02:16.1]} 29. Nxc3 {[%clk 0:02:01.2]}
29... Bxc3 {[%clk 0:02:17]} 30. Kf2 {[%clk 0:01:57.6]} 30... b5 {[%clk
0:02:17.1]} 31. Bd3 {[%clk 0:01:53.4]} 31... a5 {[%clk 0:02:15.2]} 32. Ke2
{[%clk 0:01:47.7]} 32... b4 {[%clk 0:01:56.3]} 33. a4 {[%clk 0:01:43.7]} 33...
f5 {[%clk 0:01:53.3]} 34. g5 {[%clk 0:01:25]} 34... Kg7 {[%clk 0:01:51.3]} 35.
Kf2 {[%clk 0:01:23.8]} 35... h6 {[%clk 0:01:51.3]} 36. gxh6+ {[%clk 0:01:14.3]}
36... Kh7 {[%clk 0:01:50.3]} 37. Kg3 {[%clk 0:01:10.1]} 37... Nf7 {[%clk
0:01:25.9]} 38. Ba6 {[%clk 0:00:59.7]} 38... Nxh6 {[%clk 0:01:18.7]} 39. Bc8
{[%clk 0:00:57.7]} 39... e5 {[%clk 0:01:18.9]} 40. Be6 {[%clk 0:00:46.1]} 40...
f4+ {[%clk 0:01:11.4]} 41. Kf2 {[%clk 0:00:31.9]} 41... fxe3+ {[%clk 0:01:11.7]}
42. Kxe3 {[%clk 0:00:31.4]} 42... Nf5+ {[%clk 0:01:11.9]} 43. Bxf5 {[%clk
0:00:25]} 43... Bxd4+ {[%clk 0:01:11.3]} 44. Kd3 {[%clk 0:00:22.2]} 44... gxf5
{[%clk 0:01:12.2]} 45. f4 {[%clk 0:00:21.7]} 45... Kg6 {[%clk 0:01:07.9]} 46. h3
{[%clk 0:00:20.8]} 46... Kf6 {[%clk 0:01:01.7]} 47. fxe5+ {[%clk 0:00:19.9]}
47... Kxe5 {[%clk 0:00:59.7]} 48. Bh6 {[%clk 0:00:19.8]} 48... Bb6 {[%clk
0:00:56.1]} 49. h4 {[%clk 0:00:16.9]} 49... f4 {[%clk 0:00:54.7]} 50. h5 {[%clk
0:00:15.1]} 50... f3 {[%clk 0:00:49.4]} 51. Bd2 {[%clk 0:00:04.7]} 51... Kf5
{[%clk 0:00:47]} 52. Bc1 {[%clk 0:00:04.5]} 52... Kf6 {[%clk 0:00:40.2]} 53. Bf4
{[%clk 0:00:03]} 53... Kg7 {[%clk 0:00:35.6]} 54. Kd2 {[%clk 0:00:02.1]} 54...
Kf7 {[%clk 0:00:33.9]} 55. Ke1 {[%clk 0:00:01.3]} 55... Ke6 {[%clk 0:00:33.8]}
56. Kd2 {[%clk 0:00:01.8]} 56... Kf5 {[%clk 0:00:34.1]} 57. Bd6 {[%clk
0:00:01.3]} 57... Kg5 {[%clk 0:00:31.2]} 58. Kd3 {[%clk 0:00:01.2]} 58... Kxh5
{[%clk 0:00:31.1]} 59. Kd2 {[%clk 0:00:01.8]} 59... Kg4 {[%clk 0:00:31.5]} 60.
Ke1 {[%clk 0:00:02.4]} 60... Kf5 {[%clk 0:00:30.8]} 61. Kd2 {[%clk 0:00:02.6]}
61... Ke4 {[%clk 0:00:31.3]} 62. Bg3 {[%clk 0:00:02.9]} 62... Be3+ {[%clk
0:00:27.5]} 63. Kd1 {[%clk 0:00:01.8]} 63... d4 {[%clk 0:00:28]} 64. Bh4 {[%clk
0:00:01.4]} 64... d3 {[%clk 0:00:27.7]} 65. Ke1 {[%clk 0:00:02.1]} 65... Kd4
{[%clk 0:00:26]} 66. Bf6+ {[%clk 0:00:01.8]} 66... Ke4 {[%clk 0:00:26.4]} 67.
Bd8 {[%clk 0:00:02.1]} 67... f2+ {[%clk 0:00:26.7]} 68. Kf1 {[%clk 0:00:02.5]}
68... d2 {[%clk 0:00:27.1]} 69. Ke2 {[%clk 0:00:02.6]} 69... d1=Q+ {[%clk
0:00:27.2]} 0-1

[Event "*** SCC Grand Prix: Titled Tuesday Blitz"]
[Site "Chess.com"]
[Date "2020.10.13"]
[Round "2"]
[White "abhidabhi"]
[Black "draksbg"]
[Result "1-0"]
[WhiteElo "2765"]
[BlackElo "2521"]
[TimeControl "180+1"]
[EndTime "10:18:37 PDT"]
[Termination "abhidabhi won by checkmate"]

1. e4 {[%clk 0:03:00]} 1... c5 {[%clk 0:02:59.5]} 2. Nc3 {[%clk 0:02:59.5]} 2...
Nc6 {[%clk 0:02:58.3]} 3. Bb5 {[%clk 0:02:58.6]} 3... d6 {[%clk 0:02:57.5]} 4.
Bxc6+ {[%clk 0:02:57.1]} 4... bxc6 {[%clk 0:02:57.7]} 5. f4 {[%clk 0:02:56]}
5... g6 {[%clk 0:02:52.3]} 6. d3 {[%clk 0:02:55.5]} 6... Bg7 {[%clk 0:02:50.9]}
7. Nf3 {[%clk 0:02:55.4]} 7... f6 {[%clk 0:02:47.9]} 8. e5 {[%clk 0:02:52.5]}
8... Nh6 {[%clk 0:02:45.4]} 9. Qe2 {[%clk 0:02:46]} 9... O-O {[%clk 0:02:42]}
10. Bd2 {[%clk 0:02:41.4]} 10... Nf5 {[%clk 0:02:41.4]} 11. h4 {[%clk
0:02:36.2]} 11... Ng3 {[%clk 0:02:39.7]} 12. Qe3 {[%clk 0:02:28]} 12... Nxh1
{[%clk 0:02:39]} 13. Ne2 {[%clk 0:02:28.1]} 13... fxe5 {[%clk 0:02:26.6]} 14.
fxe5 {[%clk 0:02:25.3]} 14... Bg4 {[%clk 0:02:23.8]} 15. O-O-O {[%clk
0:02:22.9]} 15... Bxf3 {[%clk 0:02:18.9]} 16. gxf3 {[%clk 0:02:22.6]} 16... Bxe5
{[%clk 0:02:16.7]} 17. Rxh1 {[%clk 0:02:21.9]} 17... Qd7 {[%clk 0:02:14.6]} 18.
h5 {[%clk 0:02:16]} 18... Qf5 {[%clk 0:01:55]} 19. hxg6 {[%clk 0:02:13.9]} 19...
hxg6 {[%clk 0:01:55]} 20. f4 {[%clk 0:02:12.6]} 20... Bg7 {[%clk 0:01:41.8]} 21.
Ng3 {[%clk 0:02:10]} 21... Qd5 {[%clk 0:01:39.1]} 22. Bc3 {[%clk 0:01:42.9]}
22... Rae8 {[%clk 0:01:26.1]} 23. Bxg7 {[%clk 0:01:38.9]} 23... Kxg7 {[%clk
0:01:25.6]} 24. f5 {[%clk 0:01:35.2]} 24... Rh8 {[%clk 0:01:19.5]} 25. Rg1
{[%clk 0:01:31.5]} 25... Qd4 {[%clk 0:00:56]} 26. Qe1 {[%clk 0:01:28.9]} 26...
Qf4+ {[%clk 0:00:52.9]} 27. Kb1 {[%clk 0:01:26.6]} 27... Qe5 {[%clk 0:00:37.7]}
28. Qc1 {[%clk 0:00:56.7]} 28... Reg8 {[%clk 0:00:33.8]} 29. a3 {[%clk
0:00:54.8]} 29... Kf8 {[%clk 0:00:32.6]} 30. f6 {[%clk 0:00:48]} 30... exf6
{[%clk 0:00:30.5]} 31. Ne4 {[%clk 0:00:48]} 31... Kg7 {[%clk 0:00:27.2]} 32. Qf1
{[%clk 0:00:35.9]} 32... c4 {[%clk 0:00:25.5]} 33. Qg2 {[%clk 0:00:34.4]} 33...
Kf7 {[%clk 0:00:20.8]} 34. dxc4 {[%clk 0:00:33.1]} 34... Rh4 {[%clk 0:00:17.2]}
35. Nd2 {[%clk 0:00:24.3]} 35... Rh2 {[%clk 0:00:15.6]} 36. Qxc6 {[%clk
0:00:16.8]} 36... Rxd2 {[%clk 0:00:15.2]} 37. Qd7+ {[%clk 0:00:16.8]} 37... Qe7
{[%clk 0:00:15.2]} 38. Qc6 {[%clk 0:00:16.9]} 38... Re2 {[%clk 0:00:12.9]} 39.
Ka2 {[%clk 0:00:15.7]} 39... Re8 {[%clk 0:00:10.4]} 40. Rh1 {[%clk 0:00:14.8]}
40... Kg7 {[%clk 0:00:10.6]} 41. Qf3 {[%clk 0:00:12.9]} 41... Re3 {[%clk
0:00:10.5]} 42. Qf2 {[%clk 0:00:12.3]} 42... Qe6 {[%clk 0:00:10.3]} 43. Qh4
{[%clk 0:00:11.8]} 43... Rg8 {[%clk 0:00:09.5]} 44. Qh7+ {[%clk 0:00:11]} 44...
Kf8 {[%clk 0:00:10.2]} 45. Qc7 {[%clk 0:00:10.6]} 45... Qe7 {[%clk 0:00:09.6]}
46. Qc8+ {[%clk 0:00:09.8]} 46... Kg7 {[%clk 0:00:10]} 47. Qg4 {[%clk
0:00:08.8]} 47... Re4 {[%clk 0:00:09.8]} 48. Qh3 {[%clk 0:00:08.9]} 48... Kf7
{[%clk 0:00:09.4]} 49. Qd3 {[%clk 0:00:07.1]} 49... Re6 {[%clk 0:00:09]} 50. Qd5
{[%clk 0:00:05.8]} 50... Kg7 {[%clk 0:00:08.3]} 51. Qd2 {[%clk 0:00:05.7]} 51...
g5 {[%clk 0:00:08.7]} 52. Qd3 {[%clk 0:00:05.4]} 52... Re4 {[%clk 0:00:07.7]}
53. Qd5 {[%clk 0:00:05]} 53... Qe6 {[%clk 0:00:08]} 54. Qb7+ {[%clk 0:00:05]}
54... Kg6 {[%clk 0:00:07.7]} 55. Qh7# {[%clk 0:00:04.8]} 1-0

[Event "*** SCC Grand Prix: Titled Tuesday Blitz"]
[Site "Chess.com"]
[Date "2020.10.13"]
[Round "2"]
[White "davidkalashian"]
[Black "penguingm1"]
[Result "0-1"]
[WhiteElo "2566"]
[BlackElo "2854"]
[TimeControl "180+1"]
[EndTime "10:18:41 PDT"]
[Termination "penguingm1 won by resignation"]

1. d4 {[%clk 0:03:00.9]} 1... d5 {[%clk 0:02:51.9]} 2. Nf3 {[%clk 0:03:00.3]}
2... Nf6 {[%clk 0:02:52.2]} 3. c4 {[%clk 0:03:00.3]} 3... e6 {[%clk 0:02:52.8]}
4. Nc3 {[%clk 0:02:59.7]} 4... Be7 {[%clk 0:02:53.2]} 5. Bf4 {[%clk 0:02:59.3]}
5... O-O {[%clk 0:02:53.2]} 6. e3 {[%clk 0:02:59.5]} 6... b6 {[%clk 0:02:53.6]}
7. Rc1 {[%clk 0:02:57.3]} 7... c5 {[%clk 0:02:52]} 8. dxc5 {[%clk 0:02:53.1]}
8... bxc5 {[%clk 0:02:50.3]} 9. cxd5 {[%clk 0:02:52.1]} 9... Nxd5 {[%clk
0:02:47.9]} 10. Nxd5 {[%clk 0:02:36.1]} 10... exd5 {[%clk 0:02:48.8]} 11. Be2
{[%clk 0:02:14.4]} 11... Qa5+ {[%clk 0:02:33.9]} 12. Qd2 {[%clk 0:02:07.5]}
12... Qxa2 {[%clk 0:02:33.9]} 13. O-O {[%clk 0:01:55.3]} 13... Be6 {[%clk
0:02:33.4]} 14. Ne5 {[%clk 0:01:16.7]} 14... Qb3 {[%clk 0:02:17.7]} 15. Bf3
{[%clk 0:01:15.7]} 15... f6 {[%clk 0:01:49.4]} 16. Nd3 {[%clk 0:01:01.5]} 16...
Nd7 {[%clk 0:01:41.5]} 17. Bg3 {[%clk 0:01:01.8]} 17... Bf7 {[%clk 0:01:36.2]}
18. Nf4 {[%clk 0:00:59.4]} 18... Nb6 {[%clk 0:01:35.6]} 19. Bg4 {[%clk
0:00:51.2]} 19... d4 {[%clk 0:01:24.1]} 20. exd4 {[%clk 0:00:49.2]} 20... Rad8
{[%clk 0:01:14.2]} 21. Qe2 {[%clk 0:00:42.7]} 21... Rfe8 {[%clk 0:01:11.6]} 22.
Be6 {[%clk 0:00:36.1]} 22... Bxe6 {[%clk 0:01:06.8]} 23. Qxe6+ {[%clk 0:00:37]}
23... Qxe6 {[%clk 0:01:03.5]} 24. Nxe6 {[%clk 0:00:37.9]} 24... Rc8 {[%clk
0:01:03.3]} 25. dxc5 {[%clk 0:00:37.2]} 25... Nd5 {[%clk 0:00:59.3]} 26. Rfd1
{[%clk 0:00:36.7]} 26... Nb4 {[%clk 0:00:58.9]} 27. h4 {[%clk 0:00:31]} 27...
Rc6 {[%clk 0:00:51.6]} 28. Nc7 {[%clk 0:00:22.6]} 28... Rc8 {[%clk 0:00:51.6]}
29. Nd5 {[%clk 0:00:16.4]} 29... Nxd5 {[%clk 0:00:48.7]} 30. Rxd5 {[%clk
0:00:17.3]} 30... Bxc5 {[%clk 0:00:49.4]} 31. Rcd1 {[%clk 0:00:16.3]} 31... Bf8
{[%clk 0:00:48]} 32. Rd7 {[%clk 0:00:13.1]} 32... Ra8 {[%clk 0:00:47.9]} 33.
R1d3 {[%clk 0:00:11.5]} 33... Rb6 {[%clk 0:00:47.9]} 34. Rd2 {[%clk 0:00:10.5]}
34... Rb5 {[%clk 0:00:47.5]} 35. Kh2 {[%clk 0:00:09.9]} 35... a5 {[%clk
0:00:47.2]} 36. R7d5 {[%clk 0:00:08.9]} 36... Rb3 {[%clk 0:00:47.2]} 37. Rd7
{[%clk 0:00:08.6]} 37... a4 {[%clk 0:00:47]} 38. Rd8 {[%clk 0:00:08.4]} 38...
Rxd8 {[%clk 0:00:40.4]} 39. Rxd8 {[%clk 0:00:09.3]} 39... Kf7 {[%clk 0:00:41.2]}
40. Ra8 {[%clk 0:00:09.1]} 40... Rb4 {[%clk 0:00:40.9]} 41. f3 {[%clk
0:00:08.7]} 41... Bc5 {[%clk 0:00:38.1]} 42. Be1 {[%clk 0:00:07.3]} 42... Rc4
{[%clk 0:00:37.3]} 43. Kh3 {[%clk 0:00:05.9]} 43... Bd4 {[%clk 0:00:37.2]} 44.
Rb8 {[%clk 0:00:03.4]} 44... Rc1 {[%clk 0:00:35.4]} 45. Rb4 {[%clk 0:00:03]}
45... Be5 {[%clk 0:00:19.4]} 46. Bg3 {[%clk 0:00:02.1]} 46... Rh1+ {[%clk
0:00:17.4]} 47. Kg4 {[%clk 0:00:02.4]} 47... h5+ {[%clk 0:00:18]} 48. Kxh5
{[%clk 0:00:02.7]} 48... Bxg3 {[%clk 0:00:18.1]} 49. Rxa4 {[%clk 0:00:03.5]}
49... g6+ {[%clk 0:00:12.4]} 50. Kh6 {[%clk 0:00:03.8]} 50... Rxh4+ {[%clk
0:00:05.4]} 51. Rxh4 {[%clk 0:00:03.8]} 51... Bxh4 {[%clk 0:00:06.3]} 52. b4
{[%clk 0:00:04.5]} 52... Bg5+ {[%clk 0:00:06.7]} 53. Kh7 {[%clk 0:00:04.2]}
53... Bd2 {[%clk 0:00:07.4]} 54. b5 {[%clk 0:00:05.1]} 54... Be3 {[%clk
0:00:08.1]} 55. g4 {[%clk 0:00:04.9]} 55... g5 {[%clk 0:00:06]} 56. Kh6 {[%clk
0:00:05]} 56... Ke6 {[%clk 0:00:06.4]} 57. Kg6 {[%clk 0:00:05.9]} 57... Ke5
{[%clk 0:00:06.7]} 58. Kf7 {[%clk 0:00:04.9]} 58... Bd4 {[%clk 0:00:06.4]} 59.
Kg6 {[%clk 0:00:05.1]} 59... Kf4 {[%clk 0:00:06.8]} 60. b6 {[%clk 0:00:05.5]}
60... Bxb6 {[%clk 0:00:06.9]} 61. Kxf6 {[%clk 0:00:04.7]} 61... Be3 {[%clk
0:00:07.8]} 62. Kg6 {[%clk 0:00:04.3]} 62... Kxf3 {[%clk 0:00:08.7]} 63. Kh5
{[%clk 0:00:05.2]} 63... Kf4 {[%clk 0:00:08.7]} 64. Kh6 {[%clk 0:00:05.2]} 64...
Kxg4 {[%clk 0:00:09.6]} 65. Kg6 {[%clk 0:00:06.1]} 65... Kf3 {[%clk 0:00:10.5]}
0-1